fUSD/lending_fUSD_20240327
["ID","MTS","AMOUNT","RATE_DAILY","PERIOD"]
[320703679,1711521053413,-685.87,0.00054794,120]
[320703680,1711521053423,-685.87,0.00054794,120]
[320703681,1711521053432,-685.87,0.00054794,120]
[320703682,1711521053441,-2418.35,0.00054794,120]
[320703683,1711521053451,-685.87,0.00054794,120]
[320703684,1711521053460,-685.87,0.00054794,120]
[320703685,1711521053469,-685.87,0.00054794,120]
[320703686,1711521053479,-685.87,0.00054794,120]
[320703687,1711521053487,-511.53088734,0.00054794,120]
[320703688,1711521053496,-151.0,0.00054794,120]
[320703689,1711521053505,-151.0,0.00054794,120]
[320703690,1711521053514,-151.0,0.00054794,120]
[320703691,1711521053523,-500.0,0.00054794,120]
[320703692,1711521053533,-2546.69,0.00054794,120]
[320703693,1711521053542,-500.0,0.00054794,120]
[320703694,1711521053551,-2376.64,0.00054794,120]
[320703695,1711521053560,-23724.79,0.00054794,120]
[320703696,1711521053570,-500.0,0.00054794,120]
[320703697,1711521053579,-500.0,0.00054794,120]
[320703698,1711521053590,-828.99,0.00054794,120]
[320703699,1711521053600,-2174.96,0.00054794,120]
[320703700,1711521053610,-500.0,0.00054794,120]
[320703701,1711521053619,-523.28371851,0.00054794,120]
[320703702,1711521053629,-5578.25,0.00054794,120]
[320703703,1711521053638,-2023.94,0.00054794,120]
[320703704,1711521053647,-151.0,0.00054794,7]
[320703705,1711521053658,-151.0,0.00054794,7]
[320703706,1711521053669,-153.72501,0.00054794,7]
[320703707,1711521053678,-3047.21,0.00054794,120]
[320703708,1711521053687,-1089.22,0.00054794,120]
[320703709,1711521053696,-513.57953081,0.00054794,120]
[320703710,1711521053708,-3121.61,0.00054794,120]
[320703711,1711521053718,-566.27,0.00054794,120]
[320703712,1711521053729,-151.0,0.00054794,120]
[320703713,1711521053739,-151.0,0.00054794,120]
[320703714,1711521053748,-151.0,0.00054794,120]
[320703715,1711521053758,-500.0,0.00054794,120]
[320703716,1711521053767,-2145.53,0.00054794,120]
[320703717,1711521053776,-2507.6,0.00054794,120]
[320703718,1711521053785,-152.199786,0.00054794,120]
[320703719,1711521053796,-2288.7,0.00054794,120]
[320703720,1711521053808,-946.85,0.00054794,120]
[320703721,1711521053818,-1932.44,0.00054794,120]
[320703722,1711521053829,-1660.12,0.00054794,120]
[320703723,1711521053839,-151.0,0.00054794,120]
[320703724,1711521053849,-500.0,0.00054794,120]
[320703725,1711521053859,-1944.3,0.00054794,120]
[320703726,1711521053870,-151.0,0.00054794,120]
[320703727,1711521053879,-151.752167,0.00054794,120]
[320703728,1711521053890,-500.0,0.00054794,120]
[320703729,1711521053899,-528.42386952,0.00054794,120]
[320703730,1711521053908,-5988.2,0.00054794,120]
[320703731,1711521053918,-15214.99,0.00054794,120]
[320703732,1711521053927,-1421.51,0.00054794,120]
[320703733,1711521053936,-513.76,0.00054794,7]
[320703734,1711521053946,-1321.39,0.00054794,120]
[320703735,1711521053956,-763.2,0.00054794,120]
[320703736,1711521053966,-2708.62,0.00054794,120]
[320703737,1711521053975,-2882.01,0.00054794,120]
[320703738,1711521053995,-39037.22,0.00054794,120]
[320703739,1711521054004,-1088.68,0.00054794,120]
[320703740,1711521054013,-13102.81,0.00054794,120]
[320703741,1711521054022,-514.12857091,0.00054794,120]
[320703742,1711521054031,-500.0,0.00054794,120]
[320703743,1711521054041,-5764.07,0.00054794,120]
[320703744,1711521054051,-61247.96,0.00054794,120]
[320703745,1711521054060,-2277.36,0.00054794,120]
[320703746,1711521054071,-5035.13,0.00054794,120]
[320703747,1711521054081,-500.0,0.00054794,120]
[320703748,1711521054091,-500.0,0.00054794,120]
[320703749,1711521054101,-500.0,0.00054794,120]
[320703750,1711521054111,-500.0,0.00054794,120]
[320703751,1711521054121,-4985.26,0.00054794,120]
[320703752,1711521054130,-1100.5,0.00054794,120]
[320703753,1711521054140,-500.0,0.00054794,120]
[320703754,1711521054150,-500.0,0.00054794,120]
[320703755,1711521054159,-500.0,0.00054794,120]
[320703756,1711521054168,-6245.09,0.00054794,120]
[320703757,1711521054177,-761.63,0.00054794,120]
[320703758,1711521054187,-785.53,0.00054794,120]
[320703759,1711521054196,-1859.18,0.00054794,120]
[320703760,1711521054205,-5640.33,0.00054794,120]
[320703761,1711521054214,-500.0,0.00054794,120]
[320703762,1711521054224,-1110.41,0.00054794,120]
[320703763,1711521054234,-151.0,0.00054794,120]
[320703764,1711521054243,-151.0,0.00054794,120]
[320703765,1711521054253,-1474.48,0.00054794,120]
[320703766,1711521054262,-500.0,0.00054794,120]
[320703767,1711521054271,-5210.65,0.00054794,120]
[320703768,1711521054281,-151.0,0.00054794,120]
[320703769,1711521054290,-151.0,0.00054794,120]
[320703770,1711521054300,-6092.35,0.00054794,120]
[320703771,1711521054309,-500.0,0.00054794,120]
[320703772,1711521054319,-10654.12,0.00054794,120]
[320703773,1711521054328,-500.0,0.00054794,120]
[320703774,1711521054337,-151.0,0.00054794,120]
[320703775,1711521054346,-151.0,0.00054794,120]
[320703776,1711521054356,-863.6,0.00054794,120]
[320703777,1711521054366,-11778.32,0.00054794,120]
[320703778,1711521054375,-5892.74,0.00054794,120]
[320703779,1711521054385,-2552.4,0.00054794,120]
[320703780,1711521054394,-8707.98,0.00054794,120]
[320703781,1711521054404,-151.0,0.00054794,120]
[320703782,1711521054413,-1030.12,0.00054794,120]
[320703783,1711521054422,-227.894689,0.00054794,120]
[320703784,1711521054432,-500.0,0.00054794,120]
[320703785,1711521054441,-11059.19,0.00054794,120]
[320703786,1711521054450,-500.0,0.00054794,120]
[320703787,1711521054459,-500.0,0.00054794,120]
[320703788,1711521054469,-7394.47,0.00054794,120]
[320703789,1711521054477,-1208.96,0.00054794,120]
[320703790,1711521054487,-4831.38,0.00054794,120]
[320703791,1711521054497,-5098.5,0.00054794,120]
[320703792,1711521054506,-151.0,0.00054794,120]
[320703793,1711521054515,-151.0,0.00054794,120]
[320703794,1711521054524,-1043.43,0.00054794,120]
[320703795,1711521054533,-569.17,0.00054794,120]
[320703796,1711521054542,-151.0,0.00054794,120]
[320703797,1711521054551,-556.60403994,0.00054794,120]
[320703798,1711521054561,-500.0,0.00054794,120]
[320703799,1711521054570,-151.0,0.00054794,120]
[320703800,1711521054579,-17649.9,0.00054794,120]
[320703801,1711521054589,-500.0,0.00054794,120]
[320703802,1711521054598,-1162.65,0.00054794,120]
[320703803,1711521054607,-500.0,0.00054794,120]
[320703804,1711521054618,-26501.87,0.00054794,120]
[320703805,1711521054774,-4072.42,0.00054794,120]
[320703806,1711521054784,-695.87,0.00054794,120]
[320703807,1711521054794,-6552.0,0.00054794,120]
[320703808,1711521054805,-151.0,0.00054794,120]
[320703809,1711521054815,-151.631502,0.00054794,120]
[320703810,1711521054824,-21370.97,0.00054794,120]
[320703811,1711521054834,-2955.62,0.00054794,120]
[320703812,1711521054845,-505.02083271,0.00054794,120]
[320703813,1711521054855,-6120.09,0.00054794,120]
[320703814,1711521054864,-2344.35,0.00054794,120]
[320703815,1711521054876,-151.0,0.00054794,120]
[320703816,1711521054887,-1643.86,0.00054794,120]
[320703817,1711521054896,-151.0,0.00054794,120]
[320703818,1711521054905,-511.08,0.00054794,120]
[320703819,1711521054914,-450.0,0.00054794,120]
[320703820,1711521054923,-500.0,0.00054794,120]
[320703821,1711521054933,-2911.99,0.00054794,120]
[320703822,1711521054942,-500.0,0.00054794,120]
[320703823,1711521054951,-658.87,0.00054794,120]
[320703824,1711521054961,-2313.61,0.00054794,120]
[320703825,1711521054971,-151.0,0.00054794,120]
[320703826,1711521054980,-151.0,0.00054794,120]
[320703827,1711521054990,-500.0,0.00054794,120]
[320703828,1711521055009,-5066.85,0.00054794,120]
[320703829,1711521055019,-8548.94,0.00054794,120]
[320703830,1711521055029,-5066.85,0.00054794,120]
[320703831,1711521055038,-500.0,0.00054794,120]
[320703832,1711521055048,-5066.85,0.00054794,120]
[320703833,1711521055057,-5066.85,0.00054794,120]
[320703834,1711521055066,-5066.85,0.00054794,120]
[320703835,1711521055075,-5066.85,0.00054794,120]
[320703836,1711521055085,-5066.85,0.00054794,120]
[320703837,1711521055094,-500.0,0.00054794,120]
[320703838,1711521055103,-5066.85,0.00054794,120]
[320703839,1711521055112,-5066.85,0.00054794,120]
[320703840,1711521055121,-511.68715365,0.00054794,120]
[320703841,1711521055130,-5066.85,0.00054794,120]
[320703842,1711521055140,-5066.85,0.00054794,120]
[320703843,1711521055149,-5066.85,0.00054794,120]
[320703844,1711521055159,-5066.85,0.00054794,120]
[320703845,1711521055168,-5066.85,0.00054794,120]
[320703846,1711521055178,-5066.85,0.00054794,120]
[320703847,1711521055187,-5066.85,0.00054794,120]
[320703848,1711521055196,-5066.85,0.00054794,120]
[320703849,1711521055206,-5066.85,0.00054794,120]
[320703850,1711521055215,-5066.85,0.00054794,120]
[320703851,1711521055225,-5066.85,0.00054794,120]
[320703852,1711521055235,-512.93319276,0.00054794,120]
[320703853,1711521055244,-5066.85,0.00054794,120]
[320703854,1711521055254,-5066.85,0.00054794,120]
[320703855,1711521055263,-5066.85,0.00054794,120]
[320703856,1711521055272,-5067.03,0.00054794,120]
[320703857,1711521055282,-500.0,0.00054794,120]
[320703858,1711521055291,-650.28,0.00054794,120]
[320703859,1711521055300,-1402.66,0.00054794,120]
[320703860,1711521055310,-6864.83,0.00054794,120]
[320703861,1711521055319,-519.18797488,0.00054794,120]
[320703862,1711521055328,-500.0,0.00054794,120]
[320703863,1711521055338,-514.10088148,0.00054794,120]
[320703864,1711521055347,-650.65,0.00054794,120]
[320703865,1711521055356,-9354.92,0.00054794,120]
[320703866,1711521055366,-151.0,0.00054794,120]
[320703867,1711521055375,-151.0,0.00054794,120]
[320703868,1711521055384,-5699.63,0.00054794,120]
[320703869,1711521055393,-2434.17,0.00054794,120]
[320703870,1711521055403,-13662.02,0.00054794,120]
[320703871,1711521055412,-500.0,0.00054794,120]
[320703872,1711521055421,-519.98431864,0.00054794,120]
[320703873,1711521055430,-1317.25,0.00054794,120]
[320703874,1711521055439,-8973.4,0.00054794,120]
[320703875,1711521055448,-684.45,0.00054794,120]
[320703876,1711521055458,-1116.05,0.00054794,120]
[320703877,1711521055467,-3001.59,0.00054794,120]
[320703878,1711521055476,-500.0,0.00054794,120]
[320703879,1711521055486,-23036.16,0.00054794,120]
[320703880,1711521055495,-500.0,0.00054794,120]
[320703881,1711521055504,-876.17,0.00054794,120]
[320703882,1711521055513,-500.0,0.00054794,55]
[320703883,1711521055523,-2290.97,0.00054794,120]
[320703884,1711521055533,-24665.86,0.00054794,120]
[320703885,1711521055542,-500.0,0.00054794,120]
[320703886,1711521055551,-500.0,0.00054794,120]
[320703887,1711521055561,-6584.66,0.00054794,21]
[320703888,1711521055570,-227.870007,0.00054794,120]
[320703889,1711521055580,-227.870007,0.00054794,120]
[320703890,1711521055589,-1248.4,0.00054794,120]
[320703891,1711521055599,-2878.49,0.00054794,120]
[320703892,1711521055609,-909.95,0.00054794,120]
[320703893,1711521055618,-500.0,0.00054794,120]
[320703894,1711521055627,-227.870007,0.00054794,120]
[320703895,1711521055636,-227.870007,0.00054794,120]
[320703896,1711521055645,-199.40692968,0.00054794,120]
[320703897,1711521055654,-1626.72,0.00054794,120]
[320703898,1711521055664,-1001.06,0.00054794,120]
[320703899,1711521055673,-530.50217462,0.00054794,120]
[320703900,1711521055682,-613.04,0.00054794,120]
[320703901,1711521055691,-1141.61,0.00054794,120]
[320703902,1711521055700,-1024.11,0.00054794,120]
[320703903,1711521055710,-508.76462575,0.00054794,120]
[320703904,1711521055719,-507.01072924,0.00054794,120]
[320703905,1711521055728,-367.56289817,0.00054794,120]
[320703906,1711521055738,-2824.98,0.00054794,120]
[320703907,1711521055747,-255.031446,0.00054794,120]
[320703908,1711521055756,-255.031446,0.00054794,120]
[320703909,1711521055765,-886.17,0.00054794,120]
[320703910,1711521055775,-500.0,0.00054794,120]
[320703911,1711521055784,-255.031446,0.00054794,120]
[320703912,1711521055794,-255.031446,0.00054794,120]
[320703913,1711521055808,-3067.74,0.00054794,120]
[320703914,1711521055819,-500.0,0.00054794,120]
[320703915,1711521055828,-638.39074566,0.00054794,120]
[320703916,1711521055838,-678.71,0.00054794,120]
[320703917,1711521055848,-1413.85,0.00054794,120]
[320703918,1711521055858,-1116.0,0.00054794,120]
[320703919,1711521055867,-151.0,0.00054794,120]
[320703920,1711521055877,-1774.49,0.00054794,120]
[320703921,1711521055886,-151.0,0.00054794,120]
[320703922,1711521055897,-510.53607595,0.00054794,120]
[320703923,1711521055905,-377.89508951,0.00054794,2]
[320703924,1711521055914,-10425.44,0.00054794,120]
[320703925,1711521055923,-150.0,0.00054794,14]
[320703926,1711521055932,-500.0,0.00054794,120]
[320703927,1711521055941,-501.95172477,0.00054794,2]
[320703928,1711521055949,-151.0,0.00054794,120]
[320703929,1711521055958,-151.0,0.00054794,120]
[320703930,1711521055967,-7515.91,0.00054794,120]
[320703931,1711521055976,-500.0,0.00054794,120]
[320703932,1711521055986,-500.0,0.00054794,120]
[320703933,1711521055995,-500.0,0.00054794,120]
[320703934,1711521056005,-693.92,0.00054794,120]
[320703935,1711521056014,-151.0,0.00054794,120]
[320703936,1711521056023,-500.0,0.00054794,120]
[320703937,1711521056032,-151.0,0.00054794,120]
[320703938,1711521056041,-1165.92,0.00054794,120]
[320703939,1711521056050,-500.0,0.00054794,120]
[320703940,1711521056058,-500.0,0.00054794,120]
[320703941,1711521056067,-506.31263657,0.00054794,120]
[320703942,1711521056076,-742.47,0.00054794,120]
[320703943,1711521056085,-12826.76,0.00054794,120]
[320703944,1711521056094,-500.0,0.00054794,120]
[320703945,1711521056103,-215.98534488,0.00054794,120]
[320703946,1711521056112,-6519.32,0.00054794,120]
[320703947,1711521056121,-193.286613,0.00054794,30]
[320703948,1711521056131,-193.286613,0.00054794,30]
[320703949,1711521056140,-515.99657988,0.00054794,120]
[320703950,1711521056149,-500.0,0.00054794,120]
[320703951,1711521056158,-749.07,0.00054794,120]
[320703952,1711521056167,-1248.06,0.00054794,120]
[320703953,1711521056176,-508.95014968,0.00054794,120]
[320703954,1711521056191,-347.19047868,0.00054794,120]
[320703955,1711521056204,-193.286613,0.00054794,30]
[320703956,1711521056218,-193.286613,0.00054794,30]
[320703957,1711521056229,-555.67,0.00054794,120]
[320703958,1711521056242,-1051.03,0.00054794,120]
[320703959,1711521056255,-950.92,0.00054794,120]
[320703960,1711521056269,-500.0,0.00054794,120]
[320703961,1711521056282,-151.0,0.00054794,120]
[320703962,1711521056294,-2315.85,0.00054794,120]
[320703963,1711521056305,-151.0,0.00054794,120]
[320703964,1711521056318,-500.0,0.00054794,120]
[320703965,1711521056330,-500.0,0.00054794,120]
[320703966,1711521056342,-8992.19,0.00054794,120]
[320703967,1711521056355,-999.07,0.00054794,120]
[320703968,1711521056368,-151.0,0.00054794,120]
[320703969,1711521056378,-500.0,0.00054794,120]
[320703970,1711521056392,-500.0,0.00054794,120]
[320703971,1711521056415,-151.0,0.00054794,120]
[320703972,1711521056436,-783.7,0.00054794,120]
[320703973,1711521056451,-500.0,0.00054794,120]
[320703974,1711521056466,-949.607586,0.00054794,120]
[320703975,1711521056482,-1594.18,0.00054794,120]
[320703976,1711521056497,-949.607586,0.00054794,120]
[320703977,1711521056513,-1904.62,0.00054794,120]
[320703978,1711521056530,-510.10592926,0.00054794,120]
[320703979,1711521056544,-268.09662982,0.00054794,120]
[320703980,1711521056557,-500.0,0.00054794,120]
[320703981,1711521056567,-277.86753886,0.00054794,120]
[320703982,1711521056578,-510.9977536,0.00054794,120]
[320703983,1711521056593,-500.0,0.00054794,120]
[320703984,1711521056606,-949.607586,0.00054794,120]
[320703985,1711521056621,-949.607586,0.00054794,120]
[320703986,1711521056634,-1000.0,0.00054795,120]
[320703987,1711521056645,-500.0,0.00054795,120]
[320703988,1711521056660,-500.0,0.00054795,120]
[320703989,1711521056674,-500.0,0.00054795,120]
[320703990,1711521056687,-500.0,0.00054795,120]
[320703991,1711521056701,-500.0,0.00054795,120]
[320703992,1711521056717,-500.0,0.00054795,120]
[320703993,1711521056732,-500.0,0.00054795,120]
[320703994,1711521056746,-500.0,0.00054795,120]
[320703995,1711521056760,-500.0,0.00054795,120]
[320703996,1711521056774,-500.0,0.00054795,120]
[320703997,1711521056793,-500.0,0.00054795,120]
[320703998,1711521056809,-500.0,0.00054795,120]
[320703999,1711521056822,-500.0,0.00054795,120]
[320704000,1711521056836,-500.0,0.00054795,120]
[320704001,1711521056849,-500.0,0.00054795,120]
[320704002,1711521056862,-500.0,0.00054795,120]
[320704003,1711521056874,-500.0,0.00054795,120]
[320704004,1711521056886,-500.0,0.00054795,120]
[320704005,1711521056899,-500.0,0.00054795,120]
[320704006,1711521056917,-500.0,0.00054795,120]
[320704007,1711521056932,-500.0,0.00054795,120]
[320704008,1711521056946,-500.0,0.00054795,120]
[320704009,1711521056959,-500.0,0.00054795,120]
[320704010,1711521056974,-500.0,0.00054795,120]
[320704011,1711521056989,-500.0,0.00054795,120]
[320704012,1711521057001,-500.0,0.00054795,120]
[320704013,1711521057014,-500.0,0.00054795,120]
[320704014,1711521057027,-500.0,0.00054795,120]
[320704015,1711521057039,-500.0,0.00054795,120]
[320704016,1711521057050,-500.0,0.00054795,120]
[320704017,1711521057061,-500.0,0.00054795,120]
[320704018,1711521057074,-500.0,0.00054795,120]
[320704019,1711521057085,-500.0,0.00054795,120]
[320704020,1711521057096,-500.0,0.00054795,120]
[320704021,1711521057107,-500.0,0.00054795,120]
[320704022,1711521057120,-500.0,0.00054795,120]
[320704023,1711521057131,-500.0,0.00054795,120]
[320704024,1711521057143,-500.0,0.00054795,120]
[320704025,1711521057157,-500.0,0.00054795,120]
[320704026,1711521057169,-500.0,0.00054795,120]
[320704027,1711521057182,-500.0,0.00054795,120]
[320704028,1711521057194,-500.0,0.00054795,120]
[320704029,1711521057206,-500.0,0.00054795,120]
[320704030,1711521057217,-500.0,0.00054795,120]
[320704031,1711521057228,-500.0,0.00054795,120]
[320704032,1711521057239,-500.0,0.00054795,120]
[320704033,1711521057251,-500.0,0.00054795,120]
[320704034,1711521057262,-500.0,0.00054795,120]
[320704035,1711521057274,-99.69947433,0.00054795,120]
[320704036,1711521057297,-400.30052567,0.00054795,120]
[320704037,1711521057308,-500.0,0.00054795,120]
[320704038,1711521057320,-500.0,0.00054795,120]
[320704039,1711521057333,-500.0,0.00054795,120]
[320704040,1711521057344,-500.0,0.00054795,120]
[320704041,1711521057356,-500.0,0.00054795,120]
[320704042,1711521057367,-500.0,0.00054795,120]
[320704043,1711521057379,-500.0,0.00054795,120]
[320704044,1711521057390,-500.0,0.00054795,120]
[320704045,1711521057401,-500.0,0.00054795,120]
[320704046,1711521057413,-500.0,0.00054795,120]
[320704047,1711521057426,-863.0,0.00054795,120]
[320704048,1711521057436,-900.0,0.00054795,120]
[320704049,1711521057447,-1003.890611,0.00054795,120]
[320704050,1711521057459,-1492.75,0.00054795,30]
[320704051,1711521057470,-500.0,0.00054795,120]
[320704052,1711521057481,-500.0,0.00054795,120]
[320704053,1711521057492,-500.0,0.00054795,120]
[320704054,1711521057503,-500.0,0.00054795,120]
[320704055,1711521057516,-500.0,0.00054795,120]
[320704056,1711521057526,-500.0,0.00054795,120]
[320704057,1711521057537,-500.0,0.00054795,120]
[320704058,1711521057549,-500.0,0.00054795,120]
[320704059,1711521057561,-500.0,0.00054795,120]
[320704060,1711521057574,-500.0,0.00054795,120]
[320704061,1711521057586,-500.0,0.00054795,120]
[320704062,1711521057598,-500.0,0.00054795,120]
[320704063,1711521057609,-500.0,0.00054795,120]
[320704064,1711521057619,-500.0,0.00054795,120]
[320704065,1711521057630,-500.0,0.00054795,120]
[320704066,1711521057641,-500.0,0.00054795,120]
[320704067,1711521057651,-500.0,0.00054795,120]
[320704068,1711521057662,-500.0,0.00054795,120]
[320704069,1711521057672,-500.0,0.00054795,120]
[320704070,1711521057683,-500.0,0.00054795,120]
[320704071,1711521057694,-500.0,0.00054795,120]
[320704072,1711521057705,-500.0,0.00054795,120]
[320704073,1711521057716,-500.0,0.00054795,120]
[320704074,1711521057726,-500.0,0.00054795,120]
[320704075,1711521057737,-500.0,0.00054795,120]
[320704076,1711521057748,-500.0,0.00054795,120]
[320704077,1711521057761,-500.0,0.00054795,120]
[320704078,1711521057771,-500.0,0.00054795,120]
[320704079,1711521057782,-500.0,0.00054795,120]
[320704080,1711521057793,-500.0,0.00054795,120]
[320704081,1711521057807,-500.0,0.00054795,120]
[320704082,1711521057818,-500.0,0.00054795,120]
[320704083,1711521057829,-500.0,0.00054795,120]
[320704084,1711521057840,-500.0,0.00054795,120]
[320704085,1711521057851,-500.0,0.00054795,120]
[320704086,1711521057862,-500.0,0.00054795,120]
[320704087,1711521057872,-500.0,0.00054795,120]
[320704088,1711521057883,-500.0,0.00054795,120]
[320704089,1711521057894,-522.0,0.00054795,120]
[320704090,1711521057905,-500.0,0.00054795,120]
[320704091,1711521057916,-500.0,0.00054795,120]
[320704092,1711521057927,-500.0,0.00054795,120]
[320704093,1711521057938,-500.0,0.00054795,120]
[320704094,1711521057949,-500.0,0.00054795,120]
[320704095,1711521057960,-500.0,0.00054795,120]
[320704096,1711521057971,-500.0,0.00054795,120]
[320704097,1711521057982,-500.0,0.00054795,120]
[320704098,1711521057992,-500.0,0.00054795,120]
[320704099,1711521058004,-500.0,0.00054795,120]
[320704100,1711521058015,-500.0,0.00054795,120]
[320704101,1711521058026,-500.0,0.00054795,120]
[320704102,1711521058038,-500.0,0.00054795,120]
[320704103,1711521058050,-500.0,0.00054795,120]
[320704104,1711521058062,-500.0,0.00054795,120]
[320704105,1711521058075,-500.0,0.00054795,120]
[320704106,1711521058087,-500.0,0.00054795,120]
[320704107,1711521058100,-500.0,0.00054795,120]
[320704108,1711521058112,-500.0,0.00054795,120]
[320704109,1711521058125,-500.0,0.00054795,120]
[320704110,1711521058137,-500.0,0.00054795,120]
[320704111,1711521058150,-500.0,0.00054795,120]
[320704112,1711521058162,-151.0,0.00054795,120]
[320704113,1711521058175,-196.167964,0.00054795,14]
[320704114,1711521058188,-196.167964,0.00054795,14]
[320704115,1711521058201,-151.64164,0.00054795,120]
[320704116,1711521058213,-178.25786,0.00054795,120]
[320704117,1711521058226,-151.64164,0.00054795,120]
[320704118,1711521058240,-178.25786,0.00054795,120]
[320704119,1711521058254,-491.324185,0.00054795,30]
[320704120,1711521058266,-491.324185,0.00054795,30]
[320704121,1711521058279,-153.193052,0.00054795,120]
[320704122,1711521058524,-603.075319,0.00054795,120]
[320704123,1711521058534,-603.075319,0.00054795,120]
[320704124,1711521058544,-1392.245663,0.00054795,120]
[320704125,1711521058553,-1392.245663,0.00054795,120]
[320704126,1711521058563,-151.0,0.00054795,120]
[320704127,1711521058572,-449.895944,0.00054795,120]
[320704128,1711521058582,-449.895944,0.00054795,120]
[320704129,1711521058592,-218.726235,0.00054795,120]
[320704130,1711521058601,-218.726235,0.00054795,120]
[320704131,1711521058611,-1200.620511,0.00054795,120]
[320704132,1711521058621,-540.245892,0.00054795,120]
[320704133,1711521058630,-1200.620511,0.00054795,120]
[320704134,1711521058641,-540.245892,0.00054795,120]
[320704135,1711521058650,-151.0,0.00054795,120]
[320704136,1711521058660,-151.0,0.00054795,7]
[320704137,1711521058670,-523.683972,0.00054795,120]
[320704138,1711521058679,-523.683972,0.00054795,120]
[320704139,1711521058688,-151.0,0.00054795,60]
[320704140,1711521058698,-151.0,0.00054795,60]
[320704141,1711521058707,-177.051292,0.00054795,120]
[320704142,1711521058717,-177.051292,0.00054795,120]
[320704143,1711521058726,-1026.185319,0.00054795,120]
[320704144,1711521058736,-1026.185319,0.00054795,120]
[320704145,1711521058745,-240.53095,0.00054795,120]
[320704146,1711521058755,-240.53095,0.00054795,120]
[320704147,1711521058765,-227.980814,0.00054795,120]
[320704148,1711521058774,-227.980814,0.00054795,120]
[320704149,1711521058783,-151.032714,0.00054798,109]
[320704150,1711521058792,-4000.0,0.000548,120]
[320704151,1711521058803,-166.74515287,0.00054802,60]
[320704152,1711521058813,-16211.36413197,0.000549,30]
[320704153,1711521058822,-151.0,0.0005493,120]
[320704154,1711521058832,-151.0,0.0005493,120]
[320704155,1711521058841,-151.0,0.0005493,120]
[320704156,1711521058850,-151.0,0.0005493,120]
[320704157,1711521058859,-151.0,0.0005493,120]
[320704158,1711521058868,-151.0,0.0005493,120]
[320704159,1711521058877,-151.0,0.0005493,120]
[320704160,1711521058887,-151.0,0.0005493,120]
[320704161,1711521058896,-151.0,0.0005493,120]
[320704162,1711521058905,-152.593239,0.0005493,120]
[320704163,1711521058914,-171.3548,0.0005493,120]
[320704164,1711521058924,-171.3548,0.0005493,120]
[320704165,1711521058933,-151.0,0.0005493,120]
[320704166,1711521058942,-151.0,0.00054956,120]
[320704167,1711521058951,-5800.0,0.00054958,7]
[320704168,1711521058960,-5800.0,0.00054966,7]
[320704169,1711521058970,-685.87,0.00054974,120]
[320704170,1711521058978,-5800.0,0.00054975,7]
[320704171,1711521058989,-151.0,0.00054975,120]
[320704172,1711521058998,-151.0,0.00054975,120]
[320704173,1711521059007,-151.0,0.00054975,120]
[320704174,1711521059016,-151.0,0.00054975,120]
[320704175,1711521059025,-157.477533,0.00054983,7]
[320704176,1711521059035,-157.477533,0.00054983,7]
[320704177,1711521059043,-207.543318,0.00054983,120]
[320704178,1711521059052,-207.543318,0.00054983,120]